bitfinex/quotes_SOLUSD_20241113
["timestamp","ask_amount","ask_price","bid_price","bid_amount"]
[1731496017801,13.7825773,208.24,208.13,15.7258]
[1731496018003,13.7825773,208.24,208.16,13.7825773]
[1731496018209,13.7825773,208.25,208.17,13.7825773]
[1731496018828,22.12252948,208.25,208.17,22.12252948]
[1731496019012,22.12252948,208.25,208.18,24.39506214]
[1731496019332,22.12252948,208.25,208.17,22.12252948]
[1731496020118,22.12252948,208.23,208.17,22.12252948]
[1731496020301,22.12252948,208.2,208.13,37.84832948]
[1731496020508,22.12252948,208.21,208.14,22.12252948]
[1731496020716,22.12252948,208.22,208.14,22.12252948]
[1731496021422,0.22549,208.27,208.14,22.12252948]
[1731496021606,22.12252948,208.29,208.22,22.12252948]
[1731496022007,22.12252948,208.3,208.23,22.12252948]
[1731496022419,22.12252948,208.3,208.22,22.12252948]
[1731496022606,22.12252948,208.3,208.11,23.902374]
[1731496022607,22.12252948,208.27,208.2,22.12252948]
[1731496023003,22.12252948,208.26,208.18,22.12252948]
[1731496023231,22.12252948,208.25,208.17,22.12252948]
[1731496023821,22.12252948,208.24,208.16,22.12252948]
[1731496024220,22.12252948,208.24,208.08,15.4527]
[1731496024221,22.12252948,208.21,208.12,22.12252948]
[1731496024434,22.12252948,208.17,208.1,22.12252948]
[1731496024729,22.12252948,208.17,208.08,37.57522948]
[1731496024902,22.12252948,208.15,208.08,22.12252948]
[1731496025531,22.12252948,208.13,208.05,22.12252948]
[1731496025909,22.12252948,208.11,208.05,22.12252948]
[1731496026220,22.12252948,208.11,208.03,38.50282948]
[1731496026426,22.12252948,208.12,208.04,22.12252948]
[1731496026722,22.12252948,208.13,208.05,22.12252948]
[1731496027113,0.12549,208.18,208.06,22.12252948]
[1731496027324,22.12252948,208.17,208.09,22.12252948]
[1731496027503,22.12252948,208.15,208.07,22.12252948]
[1731496027705,22.12252948,208.12,208.04,22.12252948]
[1731496028011,22.12252948,208.13,208.05,22.12252948]
[1731496028210,0.1,208.17,208.04,22.12252948]
[1731496028211,22.12252948,208.11,208.04,22.12252948]
[1731496028427,0.12549,208.18,208.03,16.3803]
[1731496028428,22.12252948,208.13,208.06,22.12252948]
[1731496028931,22.12252948,208.14,208.06,22.12252948]
[1731496029226,22.12252948,208.17,208.09,22.12252948]
[1731496029436,22.12252948,208.21,208.14,22.12252948]
[1731496029609,22.12252948,208.2,208.13,22.12252948]
[1731496029809,22.12252948,208.2,208.12,22.12252948]
[1731496030409,22.12252948,208.18,208.1,22.12252948]
[1731496031236,22.12252948,208.16,208.08,22.12252948]
[1731496031914,22.12252948,208.14,208.06,22.12252948]
[1731496033734,0.1,208.18,208.06,22.12252948]
[1731496034036,22.12252948,208.14,208.06,22.12252948]
[1731496034234,22.12252948,208.1,207.98,16.2966]
[1731496034529,22.12252948,208.08,208.01,22.12252948]
[1731496034741,22.12252948,208.1,208.02,22.12252948]
[1731496035321,17.8024,208.13,208.06,22.12252948]
[1731496035322,39.92492948,208.13,208.06,22.12252948]
[1731496035644,28.61702948,208.13,208.06,22.12252948]
[1731496036928,6.4945,208.13,208.06,22.12252948]
[1731496037634,28.77942948,208.18,208.11,22.12252948]
[1731496037842,0.12549,208.19,208.15,22.12252948]
[1731496038520,0.12549,208.19,208.16,22.12252948]
[1731496038715,0.12549,208.19,208.1,22.12252948]
[1731496038716,0.12549,208.19,208.18,22.12252948]
[1731496039238,0.12549,208.19,208.16,22.12252948]
[1731496039543,0.12549,208.19,208.18,22.12252948]
[1731496040418,0.12549,208.19,208.18,37.42812948]
[1731496041126,0.12549,208.19,208.18,79.55065896]
[1731496041329,0.12549,208.19,208.18,57.42812948]
[1731496041922,0.12549,208.19,208.18,369.42812948]
[1731496042739,0.12549,208.19,208.18,391.55065896]
[1731496042923,0.12549,208.19,208.18,349.42812948]
[1731496044553,6.4511,208.35,208.19,43.902374]
[1731496044851,8.54264475,208.4,208.32,22.12252948]
[1731496045141,8.54264475,208.4,208.27,22.12252948]
[1731496045142,22.12252948,208.35,208.27,22.12252948]
[1731496045520,22.12252948,208.36,208.28,22.12252948]
[1731496046037,22.12252948,208.35,208.28,22.12252948]
[1731496046451,22.12252948,208.31,208.18,15.3056]
[1731496046757,22.12252948,208.31,208.22,22.12252948]
[1731496046931,22.12252948,208.29,208.22,22.12252948]
[1731496047131,22.12252948,208.27,208.2,22.12252948]
[1731496047424,22.12252948,208.25,208.18,22.12252948]
[1731496047739,22.12252948,208.21,208.14,22.12252948]
[1731496047937,190.57362948,208.3,208.13,15.3056]
[1731496047938,22.12252948,208.25,208.18,22.12252948]
[1731496048143,168.4511,208.3,208.13,15.3056]
[1731496048144,22.12252948,208.27,208.2,22.12252948]
[1731496048326,22.12252948,208.29,208.2,22.12252948]
[1731496048526,168.4511,208.3,208.24,22.12252948]
[1731496048829,22.12252948,208.31,208.23,22.12252948]
[1731496049034,22.12252948,208.25,208.19,22.12252948]
[1731496049240,22.12252948,208.29,208.21,22.12252948]
[1731496051832,22.12252948,208.27,208.18,22.12252948]
[1731496052754,22.12252948,208.27,208.2,22.12252948]
[1731496053048,0.12549,208.33,208.24,22.12252948]
[1731496053049,22.12252948,208.33,208.24,22.12252948]
[1731496053251,22.12252948,208.33,208.26,22.12252948]
[1731496053553,6.4511,208.35,208.2,22.12252948]
[1731496053554,28.57362948,208.35,208.28,22.12252948]
[1731496054452,28.57362948,208.35,208.26,22.12252948]
[1731496054936,28.57362948,208.35,208.28,22.12252948]
[1731496056633,28.57362948,208.35,208.26,22.12252948]
[1731496056877,22.12252948,208.33,208.26,22.12252948]
[1731496057354,22.12252948,208.33,208.2,22.12252948]
[1731496057355,22.12252948,208.33,208.24,22.12252948]
[1731496057851,22.12252948,208.33,208.26,22.12252948]
[1731496058447,22.12252948,208.29,208.22,22.12252948]
[1731496060654,22.12252948,208.27,208.18,22.12252948]
[1731496060852,22.12252948,208.27,208.2,22.12252948]
[1731496062239,22.12252948,208.27,208.18,22.12252948]
[1731496062437,22.12252948,208.27,208.2,22.12252948]
[1731496064059,22.12252948,208.25,208.16,22.12252948]
[1731496064243,22.12252948,208.21,208.14,22.12252948]
[1731496064644,22.12252948,208.23,208.14,22.12252948]
[1731496064956,22.12252948,208.21,208.12,22.12252948]
[1731496065149,22.12252948,208.19,208.12,22.12252948]
[1731496065356,22.12252948,208.17,208.1,22.12252948]
[1731496065655,22.12252948,208.17,208.08,22.12252948]
[1731496065842,22.12252948,208.17,208.03,22.1794]
[1731496065843,22.12252948,208.17,208.1,22.12252948]
[1731496066537,22.12252948,208.23,208.16,22.12252948]
[1731496066965,6.2489,208.24,208.16,22.12252948]
[1731496067454,22.12252948,208.23,208.16,22.12252948]
[1731496068459,22.12252948,208.23,208.14,22.12252948]
[1731496068642,22.12252948,208.21,208.12,22.12252948]
[1731496068840,6.2489,208.24,208.1,22.12252948]
[1731496068841,22.12252948,208.19,208.1,22.12252948]
[1731496069364,28.74,208.23,208.1,22.12252948]
[1731496069365,22.12252948,208.17,208.1,22.12252948]
[1731496070455,22.12252948,208.19,208.1,22.12252948]
[1731496070770,22.12252948,208.21,208.12,22.12252948]
[1731496072762,22.12252948,208.19,208.12,22.12252948]
[1731496073854,22.12252948,208.17,208.08,22.12252948]
[1731496074058,22.12252948,208.17,208.1,22.12252948]
[1731496074259,22.12252948,208.19,208.1,22.12252948]
[1731496075037,22.12252948,208.19,208.12,22.12252948]
[1731496076253,22.12252948,208.19,208.07,20.0]
[1731496076461,22.12252948,208.17,208.1,22.12252948]
[1731496077164,22.12252948,208.19,208.1,22.12252948]
[1731496078143,22.12252948,208.19,208.07,20.0]
[1731496078144,22.12252948,208.19,208.12,22.12252948]
[1731496078762,13.83424939,208.19,208.11,13.83424939]
[1731496079345,13.83424939,208.17,208.09,13.83424939]
[1731496079839,13.83424939,208.19,208.11,13.83424939]
[1731496080453,13.83424939,208.19,208.09,13.83424939]
[1731496080749,13.83424939,208.19,208.11,13.83424939]
[1731496082167,13.83424939,208.19,208.08,312.0]
[1731496082368,13.83424939,208.19,208.1,13.83424939]
[1731496083372,13.83424939,208.17,208.1,13.83424939]
[1731496083966,13.83424939,208.17,208.08,13.83424939]
[1731496084250,13.83424939,208.12,208.04,13.83424939]
[1731496084548,2.0412659,208.21,208.11,16.3328]
[1731496084867,13.83424939,208.33,208.2,27.66849878]
[1731496085053,6.2646,208.35,208.27,13.83424939]
[1731496085455,6.2646,208.35,208.23,0.12549]
[1731496085456,13.83424939,208.33,208.23,13.95973939]
[1731496085659,13.83424939,208.33,208.25,13.83424939]
[1731496085866,13.83424939,208.34,208.25,13.83424939]
[1731496086658,13.83424939,208.34,208.23,0.12549]
[1731496086858,6.2646,208.35,208.28,13.83424939]
[1731496088361,6.2646,208.35,208.28,13.83424939]
[1731496088555,6.2646,208.35,208.32,13.83424939]
[1731496088875,6.2646,208.35,208.31,22.09359222]
[1731496089470,6.2646,208.35,208.23,23.902374]
[1731496089471,6.2646,208.35,208.29,22.09359222]
[1731496090775,6.2646,208.35,208.23,0.12549]
[1731496091084,6.2646,208.35,208.29,22.09359222]
[1731496094783,22.09359222,208.34,208.25,22.09359222]
[1731496094986,6.2646,208.35,208.25,22.09359222]
[1731496094987,22.09359222,208.32,208.25,22.09359222]
[1731496095160,22.09359222,208.3,208.23,0.12549]
[1731496095575,50.83359222,208.3,208.23,0.12549]
[1731496095770,22.09359222,208.28,208.23,0.12549]
[1731496096456,6.6616,208.25,208.23,0.12549]
[1731496096657,22.09359222,208.24,208.23,1e-08]
[1731496096894,22.21908222,208.24,208.23,1e-08]
[1731496097374,74.73596622,208.24,208.23,1e-08]
[1731496098979,0.12549,208.24,208.23,1e-08]
[1731496099187,22.09359222,208.24,208.23,1e-08]
[1731496100269,6.6616,208.31,208.23,22.09359223]
[1731496100470,6.6616,208.31,208.25,22.09359222]
[1731496100680,22.09359222,208.36,208.29,22.09359222]
[1731496100866,6.6616,208.37,208.29,22.09359222]
[1731496101290,22.09359222,208.36,208.27,22.09359222]
[1731496101464,22.09359222,208.36,208.29,22.09359222]
[1731496101670,6.6616,208.37,208.29,22.09359222]
[1731496102666,22.09359222,208.36,208.29,22.09359222]
[1731496102867,22.09359222,208.34,208.23,1e-08]
[1731496103171,22.09359222,208.32,208.25,22.09359222]
[1731496103887,22.09359222,208.34,208.27,22.09359222]
[1731496105390,162.0,208.36,208.27,22.09359222]
[1731496105565,22.09359222,208.34,208.27,22.09359222]
[1731496106274,6.6616,208.37,208.27,22.09359222]
[1731496106275,22.09359222,208.36,208.27,22.09359222]
[1731496107594,22.09359222,208.36,208.29,22.09359222]
[1731496107889,22.09359222,208.39,208.31,22.09359222]
[1731496108194,6.2209,208.42,208.33,22.09359222]
[1731496108195,22.09359222,208.41,208.33,22.09359222]
[1731496108692,22.09359222,208.41,208.29,16.3719]
[1731496108693,22.09359222,208.41,208.35,22.09359222]
[1731496108889,6.2209,208.42,208.35,22.09359222]
[1731496109097,2.04146452,208.42,208.37,22.09359222]
[1731496109274,25.617798,208.47,208.41,22.09359222]
[1731496109470,6.4227,208.47,208.41,22.09359222]
[1731496109874,28.51629222,208.52,208.45,22.09359222]
[1731496110079,0.1,208.57,208.4,22.09359222]
[1731496110080,28.51629222,208.58,208.49,22.09359222]
[1731496110280,28.51629222,208.58,208.41,15.934]
[1731496110281,28.51629222,208.58,208.51,22.09359222]
[1731496110496,6.4227,208.58,208.51,22.09359222]
[1731496110692,22.09359222,208.55,208.47,22.09359222]
[1731496111209,22.09359222,208.57,208.49,22.09359222]
[1731496111801,22.09359222,208.55,208.47,22.09359222]
[1731496112012,22.09359222,208.55,208.45,22.09359222]
[1731496112498,22.09359222,208.51,208.43,22.09359222]
[1731496112875,22.09359222,208.51,208.41,15.934]
[1731496112876,22.09359222,208.49,208.41,22.09359222]
[1731496113076,22.09359222,208.47,208.39,22.09359222]
[1731496114305,22.09359222,208.43,208.35,38.03709222]
[1731496114975,22.09359222,208.41,208.29,22.4254]
[1731496115174,22.09359222,208.41,208.33,22.09359222]
[1731496115374,22.09359222,208.39,208.31,22.09359222]
[1731496116782,22.09359222,208.36,208.27,22.09359222]
[1731496116980,22.09359222,208.36,208.29,22.09359222]
[1731496117297,22.09359222,208.38,208.29,22.09359222]
[1731496117789,162.0,208.41,208.29,22.09359222]
[1731496117992,22.09359222,208.38,208.31,22.09359222]
[1731496118198,22.09359222,208.38,208.29,22.09359222]
[1731496118393,52.516884,208.41,208.29,22.09359222]
[1731496118394,22.09359222,208.36,208.29,22.09359222]
[1731496119303,52.516884,208.41,208.24,334.5811]
[1731496119304,22.09359222,208.34,208.27,22.09359222]
[1731496120210,6.3389,208.37,208.29,22.09359222]
[1731496120382,28.43249222,208.37,208.29,22.09359222]
[1731496121498,22.09359222,208.37,208.29,22.09359222]
[1731496121702,184.09359222,208.39,208.31,22.09359222]
[1731496122008,22.09359222,208.37,208.31,22.09359222]
[1731496123088,2.09771017,208.43,208.35,22.09359222]
[1731496123292,22.09359222,208.43,208.28,6.0809]
[1731496123499,22.09359222,208.43,208.34,22.09359222]
[1731496125704,22.09359222,208.41,208.31,22.09359222]
[1731496125903,22.09359222,208.39,208.31,22.09359222]
[1731496126603,22.09359222,208.35,208.27,22.09359222]
[1731496127101,6.4969,208.43,208.33,22.09359222]
[1731496127314,22.09359222,208.42,208.33,22.09359222]
[1731496128787,44.19286341,208.45,208.37,22.09359222]
[1731496128990,42.09359222,208.45,208.37,22.09359222]
[1731496129506,162.0,208.46,208.39,22.09359222]
[1731496129808,22.09359222,208.49,208.41,22.09359222]
[1731496130210,22.09359222,208.51,208.43,22.09359222]
[1731496130385,38.51369222,208.56,208.47,22.09359222]
[1731496130590,22.09359222,208.56,208.47,22.09359222]
[1731496131586,22.09359222,208.56,208.49,22.09359222]
[1731496133799,22.09359222,208.54,208.45,22.09359222]
[1731496134501,22.09359222,208.5,208.42,6.4269]
[1731496134818,22.09359222,208.5,208.42,28.52049222]
[1731496135497,22.09359222,208.5,208.38,15.4532]
[1731496135498,22.09359222,208.46,208.38,37.54679222]
[1731496136012,22.09359222,208.44,208.38,15.4532]
[1731496136792,22.09359222,208.5,208.38,15.4532]
[1731496136793,22.09359222,208.42,208.38,15.4532]
[1731496138996,22.09359222,208.5,208.41,22.09359222]
[1731496140107,22.09359222,208.48,208.41,22.09359222]
[1731496140297,22.09359222,208.48,208.38,15.4532]
[1731496140298,22.09359222,208.48,208.39,22.09359222]
[1731496140812,22.09359222,208.46,208.39,22.09359222]
[1731496140999,22.09359222,208.46,208.38,15.4532]
[1731496141793,22.09359222,208.46,208.39,22.09359222]
[1731496142002,22.09359222,208.5,208.41,22.09359222]
[1731496142410,22.09359222,208.5,208.43,22.09359222]
[1731496142594,22.09359222,208.47,208.38,327.4532]
[1731496142916,22.09359222,208.44,208.38,15.4532]
[1731496143214,22.09359222,208.46,208.39,22.09359222]
[1731496143508,22.09359222,208.48,208.41,22.09359222]
[1731496143920,22.09359222,208.44,208.38,15.4532]
[1731496144097,22.09359222,208.46,208.38,15.4532]
[1731496144298,22.09359222,208.44,208.38,15.4532]
[1731496144815,22.09359222,208.42,208.38,15.4532]
[1731496145315,22.09359222,208.44,208.38,15.4532]
[1731496146099,22.09359222,208.46,208.38,15.4532]
[1731496146500,22.09359222,208.44,208.38,15.4532]
[1731496147818,22.09359222,208.42,208.38,15.4532]
[1731496148004,22.09359222,208.46,208.38,15.4532]
[1731496148207,22.09359222,208.48,208.41,22.09359222]
[1731496148518,23.167,208.58,208.42,0.12549]
[1731496148811,22.09359222,208.52,208.45,22.09359222]
[1731496149202,22.09359222,208.5,208.41,22.09359222]
[1731496149411,22.09359222,208.48,208.39,334.09359222]
[1731496149615,22.09359222,208.44,208.38,15.4532]
[1731496150120,44.18718444,208.4,208.3,15.4887]
[1731496150304,22.09359222,208.35,208.3,15.4887]
[1731496151413,22.09359222,208.37,208.3,15.4887]
[1731496151607,22.09359222,208.35,208.3,15.4887]
[1731496153016,22.09359222,208.37,208.3,15.4887]
[1731496153220,22.09359222,208.39,208.31,22.21908222]
[1731496154231,22.09359222,208.37,208.3,15.4887]
[1731496154602,22.09359222,208.33,208.3,15.4887]
[1731496156019,22.09359222,208.4,208.3,15.4887]
[1731496156020,22.09359222,208.31,208.3,15.4887]
[1731496156222,22.09359222,208.31,208.25,15.6058]
[1731496156424,22.09359222,208.28,208.25,15.6058]
[1731496156594,22.09359222,208.3,208.25,15.6058]
[1731496157521,22.09359222,208.28,208.25,15.6058]
[1731496157705,22.09359222,208.28,208.23,1e-08]
[1731496157902,22.09359222,208.24,208.23,1e-08]
[1731496158212,22.09359222,208.24,208.13,15.3587]
[1731496158213,44.18718444,208.24,208.13,15.3587]
[1731496158414,22.19359222,208.3,208.13,15.3587]
[1731496158415,22.09359222,208.17,208.13,15.3587]
[1731496158718,22.09359222,208.15,208.13,15.3587]
[1731496159105,22.09359222,208.17,208.13,15.3587]
[1731496159899,22.09359222,208.19,208.13,15.3587]
[1731496160324,22.09359222,208.17,208.13,15.3587]
[1731496163028,22.09359222,208.19,208.13,15.3587]
[1731496164198,22.09359222,208.19,208.13,327.3587]
[1731496166406,162.0,208.29,208.14,0.12549]
[1731496166612,22.09359222,208.2,208.14,20.12549]
[1731496166811,22.09359222,208.22,208.14,42.09359222]
[1731496167006,22.09359222,208.26,208.2,22.09359222]
[1731496167321,22.09359222,208.26,208.18,0.12549]
[1731496167527,22.09359222,208.26,208.19,22.09359222]
[1731496169446,14.15727185,208.36,208.21,22.09359222]
[1731496169447,20.0,208.35,208.21,22.09359222]
[1731496169603,22.09359222,208.32,208.25,22.09359222]
[1731496170302,22.09359222,208.32,208.23,37.39929222]
[1731496170709,22.09359222,208.28,208.23,15.3057]
[1731496173121,22.09359222,208.28,208.23,327.3057]
[1731496173619,22.09359222,208.26,208.23,15.3057]
[1731496174332,22.09359222,208.24,208.23,15.3057]
[1731496174529,22.09359222,208.24,208.16,16.3777]
[1731496174828,22.09359222,208.2,208.16,16.3777]
[1731496175219,22.09359222,208.18,208.16,16.3777]
[1731496175610,22.09359222,208.18,208.1,16.3777]
[1731496175810,22.09359222,208.2,208.1,16.3777]
[1731496175811,22.09359222,208.15,208.1,16.3777]
[1731496176610,22.09359222,208.15,208.1,328.3777]
[1731496176811,22.09359222,208.15,208.1,16.3777]
[1731496178810,22.09359222,208.13,208.1,16.3777]
[1731496180112,22.09359222,208.15,208.1,16.3777]
[1731496180511,22.09359222,208.17,208.1,16.3777]
[1731496183719,22.09359222,208.17,208.1,328.3777]
[1731496183933,22.09359222,208.15,208.1,16.3777]
[1731496184138,22.09359222,208.13,208.1,16.3777]
[1731496186422,22.09359222,208.15,208.1,16.3777]
[1731496186627,22.09359222,208.17,208.1,16.3777]
[1731496186935,22.09359222,208.19,208.12,312.0]
[1731496187435,19.211917,208.31,208.1,16.3777]
[1731496187436,22.09359222,208.25,208.17,22.09359222]
[1731496187616,22.09359222,208.27,208.19,22.09359222]
[1731496188730,6.2286,208.32,208.17,22.09359222]
[1731496188731,22.09359222,208.25,208.17,22.09359222]
[1731496188923,22.09359222,208.23,208.16,23.776884]
[1731496189123,22.09359222,208.21,208.14,6.3398]
[1731496189325,22.09359222,208.19,208.14,6.3398]
[1731496189621,22.09359222,208.21,208.14,6.3398]
[1731496190435,22.09359222,208.21,208.14,318.3398]
[1731496191021,22.09359222,208.21,208.14,6.3398]
[1731496191223,22.09359222,208.23,208.15,45.99596622]
[1731496193628,22.09359222,208.19,208.14,6.3398]
[1731496193829,22.09359222,208.19,208.11,22.09359222]
[1731496194042,22.09359222,208.17,208.11,312.12549]
[1731496194341,0.12549,208.28,208.11,334.21908222]
[1731496194342,22.09359222,208.19,208.11,334.21908222]
[1731496194544,22.09359222,208.19,208.11,22.09359222]
[1731496195830,22.09359222,208.19,208.12,23.776884]
[1731496197530,22.09359222,208.19,208.12,335.776884]
[1731496198440,22.09359222,208.21,208.13,22.09359222]
[1731496199130,22.09359222,208.21,208.12,0.12549]
[1731496199461,22.09359222,208.21,208.14,0.12549]
[1731496199627,22.09359222,208.3,208.14,23.902374]
[1731496199628,22.09359222,208.23,208.14,23.902374]
[1731496199824,22.09359222,208.23,208.15,22.09359222]
[1731496200144,22.09359222,208.23,208.16,23.776884]
[1731496200951,22.09359222,208.21,208.14,0.12549]
[1731496201133,22.09359222,208.21,208.11,22.09359222]
[1731496201337,22.09359222,208.19,208.11,334.09359222]
[1731496202155,22.09359222,208.21,208.13,22.09359222]
[1731496202325,22.09359222,208.23,208.14,0.12549]
[1731496202527,22.09359222,208.21,208.14,23.776884]
[1731496202726,22.09359222,208.19,208.14,23.776884]
[1731496202939,22.09359222,208.19,208.12,23.902374]
[1731496203139,22.09359222,208.19,208.12,23.776884]
[1731496203344,22.09359222,208.17,208.11,23.776884]
[1731496204748,22.09359222,208.13,208.1,16.3777]
[1731496205142,22.09359222,208.15,208.1,16.3777]
[1731496207955,22.09359222,208.19,208.11,45.87047622]
[1731496208437,22.09359222,208.21,208.14,335.776884]
[1731496208854,13.82948575,208.2,208.14,335.776884]
[1731496209937,13.82948575,208.18,208.14,312.0]
[1731496210234,0.12549,208.26,208.1,30.20718575]
[1731496210235,13.82948575,208.16,208.1,16.3777]
[1731496210433,13.82948575,208.2,208.1,16.3777]
[1731496210434,13.82948575,208.14,208.1,16.3777]
[1731496210850,13.82948575,208.12,208.1,16.3777]
[1731496211555,13.82948575,208.12,208.04,6.6272]
[1731496211751,13.82948575,208.11,208.04,6.6272]
[1731496211972,13.82948575,208.13,208.06,13.82948575]
[1731496212260,13.82948575,208.17,208.08,13.82948575]
[1731496212462,2.11653999,208.25,208.11,13.82948575]
[1731496212654,13.82948575,208.18,208.09,30.26037575]
[1731496212960,22.13494753,208.16,208.1,23.776884]
[1731496213136,22.13494753,208.16,208.11,312.0]
[1731496213335,22.13494753,208.16,208.1,23.776884]
[1731496213757,22.13494753,208.2,208.09,16.3054]
[1731496213758,22.13494753,208.12,208.09,16.3054]
[1731496215271,22.13494753,208.1,208.09,16.3054]
[1731496215645,22.13494753,208.1,208.04,22.6513]
[1731496215846,22.13494753,208.08,208.04,16.0241]
[1731496217667,22.13494753,208.06,208.04,16.0241]
[1731496217959,22.13494753,208.1,208.04,38.15904753]
[1731496218139,22.13494753,208.12,208.06,22.13494753]
[1731496218645,22.13494753,208.12,208.05,23.776884]
[1731496219957,22.13494753,208.14,208.06,22.13494753]
[1731496220356,22.13494753,208.12,208.05,23.776884]
[1731496221044,22.13494753,208.14,208.09,312.0]
[1731496221446,22.13494753,208.14,208.07,23.776884]
[1731496222654,22.13494753,208.12,208.05,23.776884]
[1731496222858,22.13494753,208.1,208.04,16.0241]
[1731496224468,22.13494753,208.1,208.04,328.0241]
[1731496228874,22.13494753,208.11,208.05,23.902374]
[1731496229174,22.13494753,208.13,208.05,23.902374]
[1731496229351,22.13494753,208.07,208.04,16.0241]
[1731496229552,22.13494753,208.05,208.04,16.0241]
[1731496230073,22.13494753,208.07,208.04,16.0241]
[1731496230258,22.13494753,208.09,208.04,16.0241]
[1731496230575,22.13494753,208.07,208.04,16.0241]
[1731496232858,22.13494753,208.05,207.98,15.8782]
[1731496233960,22.13494753,208.05,207.98,38.01314753]
[1731496234155,22.13494753,208.06,207.98,38.01314753]
[1731496234353,22.13494753,208.06,208.0,22.13494753]
[1731496234783,13.84567472,208.07,208.0,13.84567472]
[1731496234959,13.84567472,208.07,207.99,23.776884]
[1731496235869,13.84567472,208.05,207.99,335.776884]
[1731496237956,13.84567472,208.05,207.99,312.0]
[1731496238354,13.84567472,208.05,207.98,29.72387472]
[1731496238577,13.84567472,208.03,207.98,15.8782]
[1731496238879,13.84567472,208.02,207.98,15.8782]
[1731496239180,13.84567472,208.04,207.98,15.8782]
[1731496244194,13.84567472,208.08,208.0,13.84567472]
[1731496244384,13.84567472,208.06,207.99,13.84567472]
[1731496244870,13.84567472,208.05,207.98,327.8782]
[1731496245279,13.84567472,208.05,207.98,341.72387472]
[1731496245680,13.84567472,208.08,208.01,13.84567472]
[1731496245983,13.84567472,208.09,208.01,13.84567472]
[1731496247289,162.0,208.13,208.05,13.84567472]
[1731496247496,13.84567472,208.16,208.07,13.84567472]
[1731496248086,13.84567472,208.14,208.05,13.84567472]
[1731496248270,13.84567472,208.12,208.05,13.84567472]
[1731496248467,6.3829,208.17,208.05,13.84567472]
[1731496248669,13.84567472,208.13,208.05,325.84567472]
[1731496248878,13.84567472,208.13,208.06,23.902374]
[1731496249073,0.12549,208.21,208.08,15.9452]
[1731496249282,13.84567472,208.15,208.08,15.9452]
[1731496249885,13.84567472,208.17,208.09,37.74804872]
[1731496250092,13.84567472,208.17,208.11,13.84567472]
[1731496250476,13.84567472,208.13,208.08,15.9452]
[1731496251381,0.12549,208.24,208.08,15.9452]
[1731496251686,13.84567472,208.21,208.13,13.84567472]
[1731496252078,13.84567472,208.15,208.08,15.9452]
[1731496252275,13.84567472,208.13,208.09,312.0]
[1731496253396,13.84567472,208.13,208.08,15.9452]
[1731496254493,0.12549,208.24,208.11,13.84567472]
[1731496254695,13.84567472,208.16,208.08,15.9452]
[1731496254882,13.84567472,208.16,208.09,37.74804872]
[1731496255069,13.84567472,208.18,208.09,37.74804872]
[1731496255280,13.84567472,208.18,208.13,4.8046]
[1731496256280,13.84567472,208.18,208.13,316.8046]
[1731496256487,13.84567472,208.16,208.13,316.8046]
[1731496257178,13.84567472,208.18,208.13,316.8046]
[1731496259785,13.84567472,208.18,208.1,0.12549]
[1731496259998,13.84567472,208.18,208.1,23.902374]
[1731496260996,13.84567472,208.18,208.11,4.8051]
[1731496261197,13.84567472,208.16,208.11,4.8051]
[1731496261675,13.84567472,208.14,208.09,4.8053]
[1731496262075,13.84567472,208.12,208.08,15.9452]
[1731496262284,13.84567472,208.12,208.09,4.8056]
[1731496262493,13.84567472,208.12,208.08,15.9452]
[1731496262700,13.84567472,208.12,208.08,20.7509]
[1731496262912,8.85728326,208.14,208.08,29.60818326]
[1731496263076,24.1095,208.26,208.08,29.60818326]
[1731496263077,8.85728326,208.19,208.12,8.85728326]
[1731496263413,4.8009,208.29,208.17,23.902374]
[1731496263581,8.85728326,208.26,208.18,8.85728326]
[1731496263780,4.8009,208.29,208.18,8.85728326]
[1731496264087,33.054984,208.36,208.17,40.416174]
[1731496264088,8.85728326,208.28,208.2,8.85728326]
[1731496264291,8.85728326,208.28,208.21,23.776884]
[1731496264801,13.81844049,208.28,208.21,23.776884]
[1731496265102,6.3091,208.35,208.22,4.8026]
[1731496265103,13.81844049,208.26,208.22,4.8026]
[1731496265282,4.7998,208.34,208.22,4.8026]
[1731496265283,7.81844049,208.28,208.22,4.8026]
[1731496265878,13.81844049,208.3,208.22,4.8026]
[1731496266095,13.81844049,208.28,208.22,4.8026]
[1731496266295,13.81844049,208.28,208.22,316.8026]
[1731496266600,13.81844049,208.3,208.22,330.62104049]
[1731496268002,13.81844049,208.3,208.22,316.8026]
[1731496268381,13.81844049,208.26,208.22,312.0]
[1731496268689,13.81844049,208.27,208.19,23.776884]
[1731496269484,13.81844049,208.27,208.21,23.776884]
[1731496269880,13.81844049,208.27,208.21,22.276884]
[1731496270386,11.9996,208.34,208.21,22.276884]
[1731496270387,13.81844049,208.29,208.22,13.81844049]